[Event "Late-Titled-Tuesday-Blitz-October-03-2023"]
[Site "Chess.com"]
[Date "2023.10.03"]
[Round "4"]
[White "MikaelyanArman"]
[Black "ChristopherYoo"]
[Result "0-1"]
[WhiteElo "2857"]
[BlackElo "3000"]
[TimeControl "180+1"]
[EndTime "14:38:26 PDT"]
[Termination "ChristopherYoo won by resignation"]

1. d4 {[%clk 0:03:00.9]} 1... Nf6 {[%clk 0:02:59.4]} 2. c4 {[%clk 0:03:01.3]}
2... g6 {[%clk 0:02:50.9]} 3. Nc3 {[%clk 0:02:59.9]} 3... Bg7 {[%clk 0:02:50.7]}
4. e4 {[%clk 0:03:00.3]} 4... d6 {[%clk 0:02:50.9]} 5. f4 {[%clk 0:03:00.8]}
5... O-O {[%clk 0:02:47.2]} 6. Nf3 {[%clk 0:03:01]} 6... c5 {[%clk 0:02:40.5]}
7. d5 {[%clk 0:03:01.2]} 7... b5 {[%clk 0:02:28.7]} 8. cxb5 {[%clk 0:02:59.2]}
8... a6 {[%clk 0:02:28.8]} 9. a4 {[%clk 0:02:56.4]} 9... axb5 {[%clk 0:02:26.2]}
10. Bxb5 {[%clk 0:02:57.3]} 10... Ba6 {[%clk 0:02:26.6]} 11. Bxa6 {[%clk
0:02:50.5]} 11... Nxa6 {[%clk 0:02:27.5]} 12. O-O {[%clk 0:02:50.8]} 12... Nb4
{[%clk 0:02:20.4]} 13. Kh1 {[%clk 0:02:49]} 13... Qd7 {[%clk 0:02:06.1]} 14. Qe2
{[%clk 0:02:43.8]} 14... Rfb8 {[%clk 0:02:00.4]} 15. Rd1 {[%clk 0:02:43.7]}
15... Qb7 {[%clk 0:01:58.4]} 16. Be3 {[%clk 0:02:40.4]} 16... Qa6 {[%clk
0:01:48.5]} 17. Qxa6 {[%clk 0:02:13.7]} 17... Nxa6 {[%clk 0:01:43.9]} 18. Rab1
{[%clk 0:01:56.9]} 18... Rb4 {[%clk 0:01:32.7]} 19. e5 {[%clk 0:00:57.8]} 19...
Ne4 {[%clk 0:01:27]} 20. Nb5 {[%clk 0:00:41]} 20... Rxa4 {[%clk 0:01:16.6]} 21.
Nc3 {[%clk 0:00:23.5]} 21... Rc4 {[%clk 0:01:05.9]} 22. Ra1 {[%clk 0:00:16.2]}
22... Nxc3 {[%clk 0:00:55.2]} 23. Rdc1 {[%clk 0:00:16.6]} 23... Nc7 {[%clk
0:00:45.8]} 24. Rxa8+ {[%clk 0:00:15.2]} 24... Nxa8 {[%clk 0:00:46.7]} 25. bxc3
{[%clk 0:00:09.5]} 25... Re4 {[%clk 0:00:43.4]} 26. Bg1 {[%clk 0:00:07.7]} 26...
Nb6 {[%clk 0:00:40.5]} 27. Ng5 {[%clk 0:00:04.1]} 27... Rxf4 {[%clk 0:00:37.2]}
28. e6 {[%clk 0:00:04.4]} 28... f6 {[%clk 0:00:31.3]} 29. Nh3 {[%clk 0:00:03.5]}
29... Rc4 {[%clk 0:00:28.9]} 30. Rb1 {[%clk 0:00:02.7]} 30... Nxd5 {[%clk
0:00:29]} 31. Rb8+ {[%clk 0:00:02.9]} 31... Bf8 {[%clk 0:00:29.6]} 32. Nf2
{[%clk 0:00:03.2]} 32... Nf4 {[%clk 0:00:25.1]} 33. h3 {[%clk 0:00:01.4]} 33...
Nxe6 {[%clk 0:00:23.7]} 34. Ng4 {[%clk 0:00:02.1]} 34... Rxc3 {[%clk 0:00:21.9]}
35. Ne3 {[%clk 0:00:02.4]} 35... Kf7 {[%clk 0:00:20.7]} 36. Nd5 {[%clk
0:00:02.8]} 36... Rd3 {[%clk 0:00:20.7]} 37. Ne3 {[%clk 0:00:02.5]} 37... d5
{[%clk 0:00:19.3]} 38. Kh2 {[%clk 0:00:02.3]} 38... Bh6 {[%clk 0:00:16.6]} 39.
Ng4 {[%clk 0:00:02.2]} 39... Bf4+ {[%clk 0:00:16.6]} 40. Kh1 {[%clk 0:00:03.1]}
40... Bxb8 {[%clk 0:00:17.2]} 0-1

[Event "Late-Titled-Tuesday-Blitz-October-03-2023"]
[Site "Chess.com"]
[Date "2023.10.03"]
[Round "4"]
[White "traack"]
[Black "APOKALIPSA13"]
[Result "1-0"]
[WhiteElo "2421"]
[BlackElo "2170"]
[TimeControl "180+1"]
[EndTime "14:38:33 PDT"]
[Termination "traack won by resignation"]

1. e4 {[%clk 0:02:59.8]} 1... e5 {[%clk 0:03:00.9]} 2. Nf3 {[%clk 0:02:59.5]}
2... d5 {[%clk 0:03:01.5]} 3. exd5 {[%clk 0:02:58.7]} 3... e4 {[%clk 0:03:02.4]}
4. Qe2 {[%clk 0:02:57.6]} 4... Nf6 {[%clk 0:03:02.2]} 5. Nc3 {[%clk 0:02:56.5]}
5... Be7 {[%clk 0:03:02]} 6. Nxe4 {[%clk 0:02:52.7]} 6... O-O {[%clk 0:03:02.1]}
7. d3 {[%clk 0:02:49.9]} 7... Nxd5 {[%clk 0:03:01.2]} 8. Bd2 {[%clk 0:02:50]}
8... f5 {[%clk 0:03:00.1]} 9. Nc3 {[%clk 0:02:48]} 9... Bf6 {[%clk 0:02:59.9]}
10. d4 {[%clk 0:02:29.8]} 10... Re8 {[%clk 0:02:58.1]} 11. Ne5 {[%clk
0:02:27.4]} 11... Nc6 {[%clk 0:02:38.6]} 12. O-O-O {[%clk 0:01:55.6]} 12... Nxd4
{[%clk 0:02:34.6]} 13. Qc4 {[%clk 0:01:54.7]} 13... Rxe5 {[%clk 0:02:26.4]} 14.
Bf4 {[%clk 0:01:40]} 14... Be6 {[%clk 0:02:22.1]} 15. Bxe5 {[%clk 0:01:35]}
15... Bxe5 {[%clk 0:02:23]} 16. Rxd4 {[%clk 0:01:26.6]} 16... Bxd4 {[%clk
0:01:55.9]} 17. Qxd4 {[%clk 0:01:25.8]} 17... Nxc3 {[%clk 0:01:26.5]} 18. Qxc3
{[%clk 0:01:25.7]} 18... Qg5+ {[%clk 0:01:24.3]} 19. Kb1 {[%clk 0:01:22.3]}
19... Rd8 {[%clk 0:01:22.6]} 20. Bc4 {[%clk 0:01:21.4]} 20... Bxc4 {[%clk
0:00:48.1]} 21. Qxc4+ {[%clk 0:01:21.5]} 21... Kh8 {[%clk 0:00:46.5]} 22. Qxc7
{[%clk 0:01:22]} 22... Qd2 {[%clk 0:00:39.2]} 23. a3 {[%clk 0:01:16.7]} 23... h6
{[%clk 0:00:36.1]} 24. Qxb7 {[%clk 0:01:13.5]} 24... Qxf2 {[%clk 0:00:35.1]} 25.
Qf3 {[%clk 0:01:10.7]} 25... Qc5 {[%clk 0:00:33.4]} 26. Rd1 {[%clk 0:01:07.8]}
26... Rb8 {[%clk 0:00:29.4]} 27. Qd5 {[%clk 0:00:53.9]} 27... Qxa3 {[%clk
0:00:20.4]} 28. Qd8+ {[%clk 0:00:53.9]} 28... Qf8 {[%clk 0:00:20.3]} 29. Qxf8+
{[%clk 0:00:49.7]} 29... Rxf8 {[%clk 0:00:21.2]} 30. Rd7 {[%clk 0:00:49.7]}
30... Ra8 {[%clk 0:00:20.2]} 31. Rf7 {[%clk 0:00:49.2]} 31... g6 {[%clk
0:00:20.3]} 32. c4 {[%clk 0:00:47.3]} 32... Kg8 {[%clk 0:00:20.6]} 33. Rb7
{[%clk 0:00:44.9]} 33... Rc8 {[%clk 0:00:20.6]} 34. b3 {[%clk 0:00:42.9]} 34...
a5 {[%clk 0:00:20]} 35. Ra7 {[%clk 0:00:42.6]} 35... Rc5 {[%clk 0:00:19.6]} 36.
Kc2 {[%clk 0:00:42.9]} 36... Kf8 {[%clk 0:00:19.5]} 37. Kc3 {[%clk 0:00:43.3]}
37... g5 {[%clk 0:00:19.6]} 38. Kd4 {[%clk 0:00:43.8]} 38... Rc8 {[%clk
0:00:19.1]} 39. c5 {[%clk 0:00:44.1]} 39... Rb8 {[%clk 0:00:18.4]} 40. c6 {[%clk
0:00:39.6]} 40... Ke8 {[%clk 0:00:15.8]} 41. Kd5 {[%clk 0:00:31]} 41... Rxb3
{[%clk 0:00:14.3]} 42. Ra8+ {[%clk 0:00:31.6]} 42... Ke7 {[%clk 0:00:13.9]} 43.
c7 {[%clk 0:00:32.5]} 43... Rc3 {[%clk 0:00:11.2]} 44. c8=Q {[%clk 0:00:32.3]}
44... Rxc8 {[%clk 0:00:11.3]} 45. Rxc8 {[%clk 0:00:33.2]} 45... f4 {[%clk
0:00:11.4]} 46. Ra8 {[%clk 0:00:33.6]} 46... Kf6 {[%clk 0:00:11.5]} 47. Ke4
{[%clk 0:00:34.1]} 1-0

[Event "Late-Titled-Tuesday-Blitz-October-03-2023"]
[Site "Chess.com"]
[Date "2023.10.03"]
[Round "4"]
[White "HanSchut"]
[Black "josiur"]
[Result "1-0"]
[WhiteElo "2348"]
[BlackElo "2512"]
[TimeControl "180+1"]
[EndTime "14:38:35 PDT"]
[Termination "HanSchut won by resignation"]

1. e4 {[%clk 0:03:00.9]} 1... c6 {[%clk 0:02:59.9]} 2. d4 {[%clk 0:03:00.5]}
2... d5 {[%clk 0:03:00.5]} 3. exd5 {[%clk 0:03:01.4]} 3... cxd5 {[%clk
0:03:00.5]} 4. c4 {[%clk 0:03:02.3]} 4... Nf6 {[%clk 0:03:00.3]} 5. Nc3 {[%clk
0:03:02.9]} 5... Nc6 {[%clk 0:03:00.5]} 6. Nf3 {[%clk 0:03:03.5]} 6... Bg4
{[%clk 0:02:59.8]} 7. cxd5 {[%clk 0:03:04.1]} 7... Nxd5 {[%clk 0:02:58.6]} 8.
Qb3 {[%clk 0:03:04.2]} 8... Nb6 {[%clk 0:02:58.1]} 9. d5 {[%clk 0:03:02.8]} 9...
Bxf3 {[%clk 0:02:52.4]} 10. gxf3 {[%clk 0:02:56.2]} 10... Nd4 {[%clk 0:02:51.4]}
11. Qd1 {[%clk 0:02:50.4]} 11... e5 {[%clk 0:02:43.2]} 12. dxe6 {[%clk 0:02:45]}
12... fxe6 {[%clk 0:02:18.5]} 13. Be3 {[%clk 0:02:40.3]} 13... e5 {[%clk
0:02:03.7]} 14. Bxd4 {[%clk 0:02:34]} 14... Qxd4 {[%clk 0:02:02.9]} 15. Bb5+
{[%clk 0:02:26.6]} 15... Nd7 {[%clk 0:01:50.1]} 16. Qxd4 {[%clk 0:02:25.8]}
16... exd4 {[%clk 0:01:49.6]} 17. O-O-O {[%clk 0:02:25.8]} 17... dxc3 {[%clk
0:01:37.8]} 18. Rhe1+ {[%clk 0:02:15.1]} 18... Kf7 {[%clk 0:01:29]} 19. Rxd7+
{[%clk 0:02:10.6]} 19... Kf6 {[%clk 0:01:29]} 20. bxc3 {[%clk 0:01:39.9]} 20...
Ba3+ {[%clk 0:01:14]} 21. Kc2 {[%clk 0:01:36.9]} 21... Rhd8 {[%clk 0:01:10.2]}
22. Rxb7 {[%clk 0:01:21.6]} 22... Rab8 {[%clk 0:00:56]} 23. Rxa7 {[%clk
0:01:06.7]} 23... Bc5 {[%clk 0:00:52]} 24. Ra6+ {[%clk 0:01:01.3]} 24... Kf5
{[%clk 0:00:33.6]} 25. a4 {[%clk 0:00:53.1]} 25... Bxf2 {[%clk 0:00:31.6]} 26.
Re4 {[%clk 0:00:51.4]} 26... Rbc8 {[%clk 0:00:17.4]} 27. Bd3 {[%clk 0:00:23]}
27... Rxd3 {[%clk 0:00:06.7]} 28. Kxd3 {[%clk 0:00:22.7]} 28... Bc5 {[%clk
0:00:06.1]} 29. Ra5 {[%clk 0:00:21.2]} 29... Kf6 {[%clk 0:00:05.2]} 30. Ra6+
{[%clk 0:00:20.1]} 30... Kf5 {[%clk 0:00:05.4]} 31. Ra5 {[%clk 0:00:19.2]} 31...
Kf6 {[%clk 0:00:05.8]} 32. Rc4 {[%clk 0:00:18.6]} 32... Rd8+ {[%clk 0:00:05.4]}
33. Kc2 {[%clk 0:00:19.3]} 33... Bd6 {[%clk 0:00:05.9]} 34. Rc6 {[%clk
0:00:19.2]} 34... Ke7 {[%clk 0:00:05.6]} 35. Ra7+ {[%clk 0:00:19.1]} 35... Ke6
{[%clk 0:00:05.9]} 36. Raa6 {[%clk 0:00:19.5]} 36... Kd5 {[%clk 0:00:05.3]} 37.
Rxd6+ {[%clk 0:00:19.7]} 37... Rxd6 {[%clk 0:00:05.4]} 38. Rxd6+ {[%clk
0:00:20.6]} 38... Kxd6 {[%clk 0:00:06.3]} 39. Kd3 {[%clk 0:00:21.3]} 39... Kc5
{[%clk 0:00:06.6]} 40. c4 {[%clk 0:00:19.7]} 40... g5 {[%clk 0:00:06.7]} 41. h3
{[%clk 0:00:19.3]} 41... h5 {[%clk 0:00:06.8]} 42. Ke4 {[%clk 0:00:19.8]} 42...
Kb4 {[%clk 0:00:06.4]} 43. Kf5 {[%clk 0:00:19.9]} 43... Kxc4 {[%clk 0:00:06.8]}
44. Kxg5 {[%clk 0:00:20.3]} 44... h4 {[%clk 0:00:07.7]} 45. Kxh4 {[%clk
0:00:20.6]} 45... Kb4 {[%clk 0:00:08.6]} 46. Kg5 {[%clk 0:00:21.4]} 46... Kxa4
{[%clk 0:00:09.5]} 47. h4 {[%clk 0:00:22.2]} 47... Kb5 {[%clk 0:00:10.4]} 48. h5
{[%clk 0:00:23.1]} 48... Kc6 {[%clk 0:00:11.2]} 49. h6 {[%clk 0:00:24]} 1-0

[Event "Late-Titled-Tuesday-Blitz-October-03-2023"]
[Site "Chess.com"]
[Date "2023.10.03"]
[Round "4"]
[White "YellowJacek"]
[Black "dorpato"]
[Result "1-0"]
[WhiteElo "2294"]
[BlackElo "2032"]
[TimeControl "180+1"]
[EndTime "14:38:35 PDT"]
[Termination "YellowJacek won on time"]

1. e4 {[%clk 0:02:57.6]} 1... c5 {[%clk 0:02:53.3]} 2. Nf3 {[%clk 0:02:57.2]}
2... d6 {[%clk 0:02:53]} 3. d4 {[%clk 0:02:57.4]} 3... cxd4 {[%clk 0:02:53.9]}
4. Nxd4 {[%clk 0:02:57.9]} 4... Nf6 {[%clk 0:02:54.4]} 5. Nc3 {[%clk 0:02:58.3]}
5... a6 {[%clk 0:02:54.8]} 6. Bg5 {[%clk 0:02:58.4]} 6... e6 {[%clk 0:02:55.3]}
7. f4 {[%clk 0:02:58.7]} 7... Be7 {[%clk 0:02:55.9]} 8. Qf3 {[%clk 0:02:58.9]}
8... Qc7 {[%clk 0:02:56.5]} 9. O-O-O {[%clk 0:02:59.1]} 9... Nc6 {[%clk
0:02:56.5]} 10. Nxc6 {[%clk 0:02:53.9]} 10... bxc6 {[%clk 0:02:56.6]} 11. e5
{[%clk 0:02:54.1]} 11... Nd5 {[%clk 0:02:51.5]} 12. Bxe7 {[%clk 0:02:54.4]}
12... Qxe7 {[%clk 0:02:49.1]} 13. Ne4 {[%clk 0:02:45]} 13... dxe5 {[%clk
0:02:43.5]} 14. fxe5 {[%clk 0:02:45.9]} 14... O-O {[%clk 0:02:40.4]} 15. c4
{[%clk 0:02:45.7]} 15... Nb4 {[%clk 0:02:36.4]} 16. a3 {[%clk 0:02:43.6]} 16...
a5 {[%clk 0:02:17.4]} 17. axb4 {[%clk 0:02:43.4]} 17... axb4 {[%clk 0:02:14.4]}
18. Bd3 {[%clk 0:02:43.5]} 18... b3 {[%clk 0:02:05.9]} 19. Qg4 {[%clk
0:01:48.5]} 19... Kh8 {[%clk 0:01:12]} 20. Qh5 {[%clk 0:01:35.1]} 20... Qb4
{[%clk 0:00:36.2]} 21. Nc3 {[%clk 0:01:11.3]} 21... g6 {[%clk 0:00:24.4]} 22.
Qh4 {[%clk 0:01:10]} 22... Ba6 {[%clk 0:00:19.9]} 23. Rhf1 {[%clk 0:01:02.9]}
23... Rad8 {[%clk 0:00:14.3]} 24. Rf4 {[%clk 0:00:20]} 24... c5 {[%clk
0:00:11.8]} 25. Qh6 {[%clk 0:00:15.3]} 25... f5 {[%clk 0:00:09.4]} 26. exf6
{[%clk 0:00:14.8]} 26... Rf7 {[%clk 0:00:09.6]} 27. Qh4 {[%clk 0:00:13]} 27...
Ra8 {[%clk 0:00:07]} 28. Rff1 {[%clk 0:00:12.7]} 28... Kg8 {[%clk 0:00:06.8]}
29. Be2 {[%clk 0:00:10.5]} 29... Bb7 {[%clk 0:00:06.1]} 30. Bd3 {[%clk
0:00:08.6]} 30... Bc6 {[%clk 0:00:05.2]} 31. Bb1 {[%clk 0:00:08.3]} 31... Bb7
{[%clk 0:00:02.6]} 32. Qf4 {[%clk 0:00:05.9]} 32... Ba6 {[%clk 0:00:02.6]} 33.
g4 {[%clk 0:00:06]} 33... Bxc4 {[%clk 0:00:02.3]} 34. g5 {[%clk 0:00:06.2]}
34... Ra1 {[%clk 0:00:01.5]} 35. Rf3 {[%clk 0:00:03.3]} 1-0

[Event "Late-Titled-Tuesday-Blitz-October-03-2023"]
[Site "Chess.com"]
[Date "2023.10.03"]
[Round "4"]
[White "Truequitos"]
[Black "Macron20hTF1"]
[Result "1-0"]
[WhiteElo "2456"]
[BlackElo "2598"]
[TimeControl "180+1"]
[EndTime "14:38:37 PDT"]
[Termination "Truequitos won by checkmate"]

1. d4 {[%clk 0:03:00]} 1... c6 {[%clk 0:02:59.2]} 2. Nf3 {[%clk 0:03:00]} 2...
d5 {[%clk 0:03:00.1]} 3. Bf4 {[%clk 0:02:59.6]} 3... Nf6 {[%clk 0:03:00.4]} 4.
e3 {[%clk 0:03:00]} 4... Bg4 {[%clk 0:03:00.4]} 5. c4 {[%clk 0:03:00.2]} 5... e6
{[%clk 0:03:00.2]} 6. Qb3 {[%clk 0:03:00.5]} 6... Bxf3 {[%clk 0:03:00.7]} 7.
Qxb7 {[%clk 0:02:50]} 7... Nbd7 {[%clk 0:03:00.3]} 8. gxf3 {[%clk 0:02:49.2]}
8... Nh5 {[%clk 0:02:50.1]} 9. Bc7 {[%clk 0:02:39.6]} 9... Bb4+ {[%clk
0:02:49.4]} 10. Nd2 {[%clk 0:02:26.5]} 10... Qc8 {[%clk 0:02:46.5]} 11. Qxc8+
{[%clk 0:02:26.8]} 11... Rxc8 {[%clk 0:02:47]} 12. Bg3 {[%clk 0:02:27.5]} 12...
c5 {[%clk 0:02:40.1]} 13. cxd5 {[%clk 0:02:01.2]} 13... cxd4 {[%clk 0:02:35.6]}
14. dxe6 {[%clk 0:01:50.5]} 14... fxe6 {[%clk 0:02:34.4]} 15. a3 {[%clk
0:01:49.5]} 15... Ba5 {[%clk 0:02:21.1]} 16. b4 {[%clk 0:01:48.2]} 16... dxe3
{[%clk 0:02:21.4]} 17. fxe3 {[%clk 0:01:45.3]} 17... Nxg3 {[%clk 0:02:15.4]} 18.
hxg3 {[%clk 0:01:42.3]} 18... Bc7 {[%clk 0:02:16.1]} 19. Kf2 {[%clk 0:01:38.8]}
19... Ne5 {[%clk 0:02:12]} 20. Bb5+ {[%clk 0:01:36.1]} 20... Ke7 {[%clk
0:02:12.3]} 21. Kg2 {[%clk 0:01:26.5]} 21... Bb6 {[%clk 0:02:11]} 22. Ba4 {[%clk
0:01:06.7]} 22... Bxe3 {[%clk 0:02:03.4]} 23. Ne4 {[%clk 0:01:07.1]} 23... h6
{[%clk 0:01:45.8]} 24. Rae1 {[%clk 0:01:06.2]} 24... Bd4 {[%clk 0:01:44.2]} 25.
Nc5 {[%clk 0:01:04.5]} 25... g5 {[%clk 0:01:08.5]} 26. Bb3 {[%clk 0:01:03.7]}
26... Rc6 {[%clk 0:01:03.2]} 27. Nxe6 {[%clk 0:01:00.4]} 27... Bc3 {[%clk
0:00:55.2]} 28. Re3 {[%clk 0:00:34.6]} 28... Kf6 {[%clk 0:00:54.8]} 29. Rc1
{[%clk 0:00:27.2]} 29... Rhc8 {[%clk 0:00:54.7]} 30. Rd1 {[%clk 0:00:21.1]}
30... Ng6 {[%clk 0:00:41.3]} 31. Nc5 {[%clk 0:00:20.5]} 31... Bb2 {[%clk
0:00:37.8]} 32. Ne4+ {[%clk 0:00:09.2]} 32... Kg7 {[%clk 0:00:34.3]} 33. Nd6
{[%clk 0:00:10.1]} 33... R8c7 {[%clk 0:00:25.4]} 34. Ne8+ {[%clk 0:00:10]} 34...
Kf8 {[%clk 0:00:21.8]} 35. Nxc7 {[%clk 0:00:10]} 35... Rxc7 {[%clk 0:00:22.7]}
36. Rd8+ {[%clk 0:00:10.2]} 36... Kg7 {[%clk 0:00:21.8]} 37. Rg8+ {[%clk
0:00:10.6]} 37... Kf6 {[%clk 0:00:22.3]} 38. Re6+ {[%clk 0:00:08.9]} 38... Kf5
{[%clk 0:00:23]} 39. Rgxg6 {[%clk 0:00:07.9]} 39... Rc1 {[%clk 0:00:20]} 40.
Rxh6 {[%clk 0:00:07.3]} 40... Bd4 {[%clk 0:00:16.2]} 41. g4+ {[%clk 0:00:07.7]}
41... Kf4 {[%clk 0:00:16.3]} 42. Rhf6+ {[%clk 0:00:07.2]} 42... Bxf6 {[%clk
0:00:16]} 43. Rxf6+ {[%clk 0:00:08.1]} 43... Ke3 {[%clk 0:00:16.8]} 44. Re6+
{[%clk 0:00:08.3]} 44... Kf4 {[%clk 0:00:17]} 45. Re4# {[%clk 0:00:08.3]} 1-0

[Event "Late-Titled-Tuesday-Blitz-October-03-2023"]
[Site "Chess.com"]
[Date "2023.10.03"]
[Round "4"]
[White "queen_iryna"]
[Black "Yushko_Olga"]
[Result "1-0"]
[WhiteElo "2363"]
[BlackElo "2101"]
[TimeControl "180+1"]
[EndTime "14:38:38 PDT"]
[Termination "queen_iryna won by resignation"]

1. e4 {[%clk 0:03:00.9]} 1... e6 {[%clk 0:03:00]} 2. d4 {[%clk 0:03:00.7]} 2...
d5 {[%clk 0:03:00]} 3. Nc3 {[%clk 0:03:01.6]} 3... Nf6 {[%clk 0:02:59.8]} 4. Bg5
{[%clk 0:03:01.4]} 4... dxe4 {[%clk 0:02:59.6]} 5. Nxe4 {[%clk 0:03:01.1]} 5...
Be7 {[%clk 0:03:00.3]} 6. Bxf6 {[%clk 0:03:01.6]} 6... Bxf6 {[%clk 0:03:01.2]}
7. Nf3 {[%clk 0:03:01.8]} 7... O-O {[%clk 0:03:02.1]} 8. c3 {[%clk 0:03:02.3]}
8... Nd7 {[%clk 0:02:59.8]} 9. Bd3 {[%clk 0:03:02.8]} 9... Be7 {[%clk
0:02:58.6]} 10. Qc2 {[%clk 0:03:02.4]} 10... h6 {[%clk 0:02:58.2]} 11. h4 {[%clk
0:03:01.5]} 11... c5 {[%clk 0:02:54.7]} 12. Neg5 {[%clk 0:02:53.5]} 12... cxd4
{[%clk 0:02:50.2]} 13. Bh7+ {[%clk 0:02:52.3]} 13... Kh8 {[%clk 0:02:50.4]} 14.
Bg8 {[%clk 0:02:53]} 14... d3 {[%clk 0:02:00.5]} 15. Qxd3 {[%clk 0:02:51.1]}
15... Nf6 {[%clk 0:01:58.7]} 16. Qxd8 {[%clk 0:02:47.6]} 16... Bxd8 {[%clk
0:01:53.9]} 17. Bxf7 {[%clk 0:02:43.5]} 17... Bc7 {[%clk 0:01:13.9]} 18. Bg6
{[%clk 0:02:37.6]} 18... Bd7 {[%clk 0:01:02.9]} 19. Nf7+ {[%clk 0:02:36.5]}
19... Kg8 {[%clk 0:01:01]} 20. N7e5 {[%clk 0:02:36.4]} 20... Bb5 {[%clk
0:00:52.9]} 21. c4 {[%clk 0:02:33.1]} 21... Be8 {[%clk 0:00:52]} 22. h5 {[%clk
0:02:30.1]} 22... Bxg6 {[%clk 0:00:46.9]} 23. Nxg6 {[%clk 0:02:31]} 23... Rfd8
{[%clk 0:00:42.4]} 24. Rd1 {[%clk 0:02:28.1]} 24... Ba5+ {[%clk 0:00:40.2]} 25.
Ke2 {[%clk 0:02:27.3]} 25... Rxd1 {[%clk 0:00:31.4]} 26. Rxd1 {[%clk 0:02:28.2]}
26... Nxh5 {[%clk 0:00:31.6]} 27. Rd7 {[%clk 0:02:22.1]} 27... Kh7 {[%clk
0:00:30.4]} 28. Nfe5 {[%clk 0:02:16.6]} 28... Rf8 {[%clk 0:00:19.8]} 29. g3
{[%clk 0:02:15.4]} 29... Bb6 {[%clk 0:00:17.8]} 30. f4 {[%clk 0:01:57.3]} 30...
Nxg3+ {[%clk 0:00:17.7]} 31. Kf3 {[%clk 0:01:57.9]} 31... Nf5 {[%clk 0:00:18.1]}
32. Rc7 {[%clk 0:01:55.7]} 32... Nd4+ {[%clk 0:00:18.1]} 33. Ke4 {[%clk
0:01:55.4]} 33... Nc6 {[%clk 0:00:17.8]} 34. Rxb7 {[%clk 0:01:54.2]} 34... Nxe5
{[%clk 0:00:16.3]} 35. Nxe5 {[%clk 0:01:55.1]} 35... Ba5 {[%clk 0:00:15.7]} 36.
Rxa7 {[%clk 0:01:53.8]} 36... Bd2 {[%clk 0:00:16]} 37. Nd3 {[%clk 0:01:54]}
37... Rd8 {[%clk 0:00:16.1]} 38. a4 {[%clk 0:01:52.8]} 38... Rb8 {[%clk
0:00:15.5]} 39. a5 {[%clk 0:01:52]} 39... Rf8 {[%clk 0:00:11.8]} 40. a6 {[%clk
0:01:50.8]} 40... h5 {[%clk 0:00:12.4]} 41. Rb7 {[%clk 0:01:47.2]} 41... Ra8
{[%clk 0:00:12.5]} 42. a7 {[%clk 0:01:46.7]} 42... h4 {[%clk 0:00:13]} 43. b4
{[%clk 0:01:46.7]} 43... h3 {[%clk 0:00:13.4]} 44. Nf2 {[%clk 0:01:46.5]} 44...
h2 {[%clk 0:00:12.4]} 45. b5 {[%clk 0:01:46.4]} 45... Be1 {[%clk 0:00:12.3]} 46.
Nh1 {[%clk 0:01:45.7]} 46... Ba5 {[%clk 0:00:12.1]} 47. b6 {[%clk 0:01:45.3]}
47... Bxb6 {[%clk 0:00:12.7]} 48. Rxb6 {[%clk 0:01:46.2]} 48... Rxa7 {[%clk
0:00:13.5]} 49. Rb2 {[%clk 0:01:41]} 49... Ra4 {[%clk 0:00:12.6]} 50. Rxh2+
{[%clk 0:01:40.6]} 50... Kg6 {[%clk 0:00:13.5]} 51. Rc2 {[%clk 0:01:39.7]} 51...
Ra1 {[%clk 0:00:13.3]} 52. Nf2 {[%clk 0:01:38.7]} 52... Re1+ {[%clk 0:00:13.4]}
53. Kd4 {[%clk 0:01:36.5]} 53... Kf5 {[%clk 0:00:13.4]} 54. c5 {[%clk 0:01:36]}
54... Ra1 {[%clk 0:00:12]} 55. Nd3 {[%clk 0:01:35.6]} 55... Ra4+ {[%clk
0:00:11.9]} 56. Rc4 {[%clk 0:01:35.7]} 56... Ra7 {[%clk 0:00:10.9]} 57. c6
{[%clk 0:01:35.6]} 57... Rc7 {[%clk 0:00:11.7]} 58. Kc5 {[%clk 0:01:34.2]} 58...
g5 {[%clk 0:00:10]} 59. fxg5 {[%clk 0:01:33.8]} 59... e5 {[%clk 0:00:10.7]} 60.
Kd6 {[%clk 0:01:33]} 60... Rc8 {[%clk 0:00:10.5]} 61. c7 {[%clk 0:01:32.8]}
61... e4 {[%clk 0:00:10.8]} 62. Ne1 {[%clk 0:01:31.8]} 62... e3 {[%clk
0:00:09.9]} 63. Kd7 {[%clk 0:01:31.4]} 63... Rh8 {[%clk 0:00:09.9]} 64. c8=Q
{[%clk 0:01:30.8]} 64... Rxc8 {[%clk 0:00:09.4]} 65. Kxc8 {[%clk 0:01:30.6]}
65... Kxg5 {[%clk 0:00:10.3]} 66. Re4 {[%clk 0:01:30.3]} 1-0

[Event "Late-Titled-Tuesday-Blitz-October-03-2023"]
[Site "Chess.com"]
[Date "2023.10.03"]
[Round "4"]
[White "IPAchess"]
[Black "AlivodicDario"]
[Result "1-0"]
[WhiteElo "2332"]
[BlackElo "2477"]
[TimeControl "180+1"]
[EndTime "14:38:39 PDT"]
[Termination "IPAchess won by checkmate"]

1. d4 {[%clk 0:03:00.9]} 1... d5 {[%clk 0:03:00.2]} 2. c4 {[%clk 0:02:57.9]}
2... e6 {[%clk 0:03:00.4]} 3. Nf3 {[%clk 0:02:55.5]} 3... c6 {[%clk 0:03:00.7]}
4. Nc3 {[%clk 0:02:53.7]} 4... dxc4 {[%clk 0:03:00.4]} 5. a4 {[%clk 0:02:52.9]}
5... Bb4 {[%clk 0:02:59.9]} 6. g3 {[%clk 0:02:50.9]} 6... b5 {[%clk 0:02:55.7]}
7. Bg2 {[%clk 0:02:50.6]} 7... Nd7 {[%clk 0:02:55.4]} 8. O-O {[%clk 0:02:48.7]}
8... Bb7 {[%clk 0:02:54.7]} 9. Nd2 {[%clk 0:02:20.2]} 9... Qb6 {[%clk
0:02:45.4]} 10. Nde4 {[%clk 0:02:04.5]} 10... Ngf6 {[%clk 0:02:43.5]} 11. Bg5
{[%clk 0:02:03.1]} 11... Be7 {[%clk 0:02:36.6]} 12. b3 {[%clk 0:01:52]} 12... b4
{[%clk 0:02:08.5]} 13. a5 {[%clk 0:01:41.3]} 13... Qa6 {[%clk 0:02:01.9]} 14.
Na4 {[%clk 0:01:35.7]} 14... Nxe4 {[%clk 0:01:45]} 15. Bxe7 {[%clk 0:01:34.3]}
15... Kxe7 {[%clk 0:01:45.1]} 16. Bxe4 {[%clk 0:01:33.5]} 16... c5 {[%clk
0:00:55.6]} 17. Bxb7 {[%clk 0:01:26.9]} 17... Qxb7 {[%clk 0:00:56.5]} 18. bxc4
{[%clk 0:01:26.6]} 18... Rhc8 {[%clk 0:00:46.9]} 19. dxc5 {[%clk 0:00:33.9]}
19... Nxc5 {[%clk 0:00:46.1]} 20. Nxc5 {[%clk 0:00:33.8]} 20... Rxc5 {[%clk
0:00:46.6]} 21. Qd4 {[%clk 0:00:34.3]} 21... Rac8 {[%clk 0:00:36.3]} 22. Qxg7
{[%clk 0:00:33.4]} 22... Rxc4 {[%clk 0:00:33.6]} 23. Rfd1 {[%clk 0:00:30.4]}
23... b3 {[%clk 0:00:27.6]} 24. Rab1 {[%clk 0:00:20.3]} 24... Rc2 {[%clk
0:00:18.9]} 25. a6 {[%clk 0:00:18.4]} 25... Qb6 {[%clk 0:00:03.6]} 26. Qg5+
{[%clk 0:00:17]} 26... Kf8 {[%clk 0:00:03.2]} 27. Qh6+ {[%clk 0:00:17.2]} 27...
Kg8 {[%clk 0:00:03.4]} 28. Qg5+ {[%clk 0:00:16.5]} 28... Kf8 {[%clk 0:00:03.8]}
29. Qf6 {[%clk 0:00:11.2]} 29... Rxe2 {[%clk 0:00:02.6]} 30. Rf1 {[%clk
0:00:09.7]} 30... b2 {[%clk 0:00:02.3]} 31. Qh6+ {[%clk 0:00:09.4]} 31... Ke8
{[%clk 0:00:02.4]} 32. Qxh7 {[%clk 0:00:09.3]} 32... Rcc2 {[%clk 0:00:02.7]} 33.
Qh8+ {[%clk 0:00:09.5]} 33... Ke7 {[%clk 0:00:03]} 34. Qh4+ {[%clk 0:00:08.6]}
34... Kf8 {[%clk 0:00:02.6]} 35. Qh8+ {[%clk 0:00:07.8]} 35... Ke7 {[%clk
0:00:03.2]} 36. Qh4+ {[%clk 0:00:08.5]} 36... Kd7 {[%clk 0:00:03.2]} 37. Qf4
{[%clk 0:00:09.4]} 37... Qc5 {[%clk 0:00:02.2]} 38. Rbd1+ {[%clk 0:00:09.2]}
38... Ke7 {[%clk 0:00:01.7]} 39. Qh4+ {[%clk 0:00:08.4]} 39... Ke8 {[%clk
0:00:01.8]} 40. Rd8# {[%clk 0:00:08.4]} 1-0